Cogmind - Beta 17.1 @@@ ROGUE MODE // 2026.09.17 @ 21:39:14 Player: 7H-NLC Result: Self-destructed Performance ------------- Evolutions (0) 0 Regions Visited (4) 800 Robots Destroyed (24) 120 Value Destroyed (630) 630 Prototype IDs (19) 380 Alien Tech Used (0) 0 Bonus (300) 300 TOTAL SCORE: 2230 Bonus ------- Registered with UFD 300 Cogmind --------- Core Integrity 61/250 Matter 300/300 Energy 170/170 System Corruption 0% Temperature Cool (0) Movement Rolling (155) Ox5 Location -9/Scraptown Parts ------- > --- POWER (1) -------- Makeshift Power Source > --- PROPULSION (2) --- Light Treads Wheel > --- UTILITY (2) ------ High-capacity Storage Unit Makeshift Light Armor Plating > --- WEAPON (2) ------- Battle Cannon Battle Cannon > --- INVENTORY (20) --- Subdweller Monowheel Cargo Storage Unit Large Matter Pod (150) Makeshift Light Armor Plating Scrap Shield Makeshift System Shield Subdweller Beam Cannon Subdweller Beam Cannon Powered Cannon Subdweller Machine Gun Subdweller Shrapnel Launcher Dirty Datajack (20) Makeshift Sword Shrapnel Trap Shrapnel Trap Shrapnel Trap Piercing Trap Peak State ------------ > --- POWER ------------ Makeshift Power Source > --- PROPULSION ------- Light Treads Wheel > --- UTILITY ---------- High-capacity Storage Unit Makeshift Light Armor Plating > --- WEAPON ----------- Battle Cannon Makeshift Sword > --- INVENTORY -------- Subdweller Monowheel Cargo Storage Unit Large Matter Pod Makeshift Light Armor Plating Scrap Shield Makeshift System Shield Subdweller Beam Cannon Subdweller Beam Cannon Powered Cannon Subdweller Machine Gun Battle Cannon Subdweller Shrapnel Launcher Dirty Datajack Shrapnel Trap Shrapnel Trap Shrapnel Trap Piercing Trap [Rating: 22] Favorites ----------- Power Ion Engine Engine Ion Engine Propulsion Light Treads Treads Light Treads Wheel Wheel Utility High-capacity Storage Unit Device Improved Terrain Scanner Storage High-capacity Storage Unit Protection Makeshift Light Armor Plating Weapon Battle Cannon Energy Gun Small Laser Energy Cannon Subdweller Beam Cannon Ballistic Gun Assault Rifle Ballistic Cannon Battle Cannon Launcher Grenade Launcher Special Weapon Mining Laser Slashing Weapon Makeshift Sword Build | -11 -10 -10 -9 -9 ------- Run | Yrd Mat Sub Rec Scr Slots Evolved . | . . . . . Power . | . . . . . Propulsion . | . . . . . Utility . | . . . . . Weapon . | . . . . . Parts Attached 22 | 7 1 14 . . Power 3 | 1 . 2 . . Engine 3 | 1 . 2 . . Core . | . . . . . Reactor . | . . . . . Propulsion 4 | 2 . 2 . . Treads 2 | . . 2 . . Leg . | . . . . . Wheel 2 | 2 . . . . Hover . | . . . . . Flight . | . . . . . Utility 6 | 2 1 3 . . Device 2 | 1 . 1 . . Storage 3 | 1 1 1 . . Processor . | . . . . . Hackware . | . . . . . Protection 1 | . . 1 . . Artifact . | . . . . . Weapon 9 | 2 . 7 . . Energy Gun 1 | 1 . . . . Energy Cannon 2 | . . 2 . . Ballistic Gun 1 | 1 . . . . Ballistic Cannon 2 | . . 2 . . Launcher 1 | . . 1 . . Special Weapon 1 | . . 1 . . Impact Weapon . | . . . . . Slashing Weapon 1 | . . 1 . . Piercing Weapon . | . . . . . Special Melee Weapon . | . . . . . Unidentified Prototypes . | . . . . . Parts Lost 7 | . . 7 . . Power 1 | . . 1 . . Propulsion 2 | . . 2 . . Utility 2 | . . 2 . . Weapon 2 | . . 2 . . Highest Loss Streak 4 | . . 4 . . To Critical Strikes . | . . . . . Average Backups 12 | 2 8 12 13 13 Power . | . 1 . . . Propulsion 1 | 1 2 . 1 1 Utility 3 | . 2 3 5 5 Weapon 6 | . 2 6 6 6 Tool/Special . | . . . . . Unused Backups 14 | . . 5 . 9 Power . | . . . . . Propulsion 1 | . . . . 1 Utility 4 | . . . . 4 Weapon 7 | . . 4 . 3 Tool/Special 2 | . . 1 . 1 Average Slot Usage (%) 97 | . 98 95 100 100 Engine 13 | . 13 13 14 14 Treads 17 | . . 22 14 14 Wheel 9 | . 27 5 14 14 Device 4 | . 14 5 . . Storage 14 | . 14 14 14 14 Protection 9 | . . 8 14 14 Energy Gun 1 | . 13 . . . Ballistic Gun 1 | . 13 . . . Ballistic Cannon 17 | . . 14 27 28 Slashing Weapon 4 | . . 7 . . Peak Build Rating 22 | 7 8 22 20 20 Average Rating 15 | 5 7 14 20 20 On Entrance 11 | . 7 8 22 20 Avg Prop Armor Cover (%) 9 | . . 10 9 9 Naked Turns . | . . . . . Heaviest Build 59 | 14 49 59 54 54 Greatest Support 40 | 26 26 40 10 10 Greatest Overweight (x) 5 | . 4 5 5 5 Average Overweight (x) 3 | . . 2 5 5 Largest Inventory Capacity 20 | 8 20 20 20 20 Average Capacity 19 | 7 19 20 20 20 Most Carried 20 | 4 12 20 20 20 Average Carried 16 | 2 9 16 20 20 Final Capacity 20 | 8 20 20 20 20 Final Carried 20 | 4 12 20 20 20 Class Distribution -------------------- 61% | Mutant 38% | Derelict-Mutant Dominant Class ---------------- Mutant | -10/Materials Mutant | -10/Subcaves Derelict-Mutant | -9/Recycling Derelict-Mutant | -9/Scraptown Resources | -11 -10 -10 -9 -9 ----------- Run | Yrd Mat Sub Rec Scr Matter Collected 1229 | 297 244 618 60 10 Remotely . | . . . . . Salvage Created 670 | 82 216 337 35 . Parts 46 | 5 11 26 4 . Haulers Intercepted 2 | . 2 . . . Recyclers Shooed 5 | 1 4 . . . Parts Field Recycled . | . . . . . Retrieved Matter . | . . . . . Parts Self-Destructed 9 | . . 9 . . Prevented . | . . . . . Parts Restored . | . . . . . Kills | -11 -10 -10 -9 -9 ------- Run | Yrd Mat Sub Rec Scr Combat Hostiles Destroyed 15 | . . 14 1 . Cannons 13 | . . 12 1 . AOE 2 | . . 2 . . Classes Destroyed 8 | 1 4 2 1 . Worker 1 | . 1 . . . Tunneler 4 | 3 1 . . . Hauler 2 | . 2 . . . Recycler 1 | . 1 . . . Watcher 1 | . 1 . . . Swarmer 1 | . . 1 . . Sentry 1 | . . . 1 . Subdweller 13 | . . 13 . . Best Kill Streak 3 | 3 3 2 1 . Combat Bots Only 2 | . . 2 1 . Max Kills in Single Turn 1 | 1 1 1 1 . Gunslinging . | . . . . . Exploded 1 | . . 1 . . Melee . | . . . . . Uniques/NPCs Destroyed . | . . . . . Combat | -11 -10 -10 -9 -9 -------- Run | Yrd Mat Sub Rec Scr Hostile Shots Fired 69 | . . 67 2 . Missed 26 | . . 25 1 . Hits 43 | . . 42 1 . Projectile 43 | . . 42 1 . Critical Strikes 2 | . . 1 1 . Damage Taken 901 | . . 887 14 . Core 189 | . . 189 . . Absorbed by Shields . | . . . . . Core Remaining (%) 100 | 100 . . . . Volleys Fired 122 | 9 22 89 2 . Largest 2 | 2 2 2 2 . Hottest 133 | 60 60 133 66 . Shots Fired 167 | 18 44 101 4 . Gun 66 | 18 44 4 . . Cannon 96 | . . 92 4 . Launcher 4 | . . 4 . . Special 1 | . . 1 . . Kinetic 117 | 9 22 82 4 . Thermal 46 | 9 22 15 . . Explosive 4 | . . 4 . . Electromagnetic . | . . . . . Robot Hit Streak 16 | 5 11 16 4 . Robot Miss Streak 2 | 2 2 2 . . Penetration Max . | . . . . . Secondary Targets . | . . . . . Shots Hit Robots 101 | 11 32 55 3 . Core Hits 37 | 3 10 22 2 . Critical Kills . | . . . . . Critical Parts Destroyed . | . . . . . Critical Strikes 3 | . . 3 . . Blast 3 | . . 3 . . Melee Attacks 31 | . . 31 . . Impact . | . . . . . Slashing 31 | . . 31 . . Piercing . | . . . . . Sneak Attacks . | . . . . . Combat Hostiles . | . . . . . Follow-up Attacks . | . . . . . Damage Inflicted 1839 | 129 385 1260 65 . Guns 552 | 129 385 38 . . Cannons 1075 | . . 1010 65 . Explosions 212 | . . 212 . . Melee . | . . . . . Ramming . | . . . . . Kinetic 1369 | 50 216 1038 65 . Thermal 258 | 79 169 10 . . Explosive 212 | . . 212 . . Electromagnetic . | . . . . . Impact . | . . . . . Slashing . | . . . . . Piercing . | . . . . . Highest Corruption 1 | . . . 1 . Average Corruption 1 | . . . 1 . Corruption Purged . | . . . . . Corruption Blocked . | . . . . . Effects 3 | . . . 3 . Matter Fused 1 | . . . 1 . Heat Flow Errors 2 | . . . 2 . Overload Shots . | . . . . . Overflow Damage . | . . . . . Projectiles . | . . . . . Explosions . | . . . . . Melee . | . . . . . Knockbacks 10 | . . 10 . . Impact . | . . . . . Kinetic 9 | . . 9 . . Secondary 1 | . . 1 . . Self-Inflicted Damage . | . . . . . Shots . | . . . . . Rammed . | . . . . . Targets Rammed . | . . . . . Kicked . | . . . . . Crushed . | . . . . . Highest Temperature 261 | . . 261 205 . Average Temperature 76 | . . 69 81 . Received Heat Transfer 488 | . . 461 27 . Siege Activations . | . . . . . Martial Activations . | . . . . . Shielding Activations . | . . . . . Robots Disrupted . | . . . . . Combat Hostiles . | . . . . . Robots Corrupted . | . . . . . Combat Hostiles . | . . . . . Parts Fried . | . . . . . Impact Corruptions . | . . . . . Robots Melted . | . . . . . Combat Hostiles . | . . . . . Parts Melted . | . . . . . Heat Transferred 575 | 175 375 25 . . Parts Sabotaged . | . . . . . Parts Stolen . | . . . . . Parts Stripped . | . . . . . Power Chain Reactions . | . . . . . Alert | -11 -10 -10 -9 -9 ------- Run | Yrd Mat Sub Rec Scr Maximum Alert Level . | . . . . . Low Security (%) 100 | 100 100 . 100 . Level 1 . | . . . . . Level 2 . | . . . . . Level 3 . | . . . . . Level 4 . | . . . . . Level 5 . | . . . . . High Security . | . . . . . Max Security . | . . . . . Peak Influence 80 | 10 15 . 80 . Initial 16 | . . . 16 . Average 7 | 1 . . 15 . Influence Increases 240 | 15 50 35 140 . Destroy 0b10 Robot/C 40 | . . 20 20 . Destroy 0b10 Robot/NC 45 | 15 30 . . . Destroy Leader 6 | . 6 . . . Successful Hack 14 | . 14 . . . Select Force Hacks 120 | . . . 120 . Lose Combat Pursuer 15 | . . 15 . . Influence Decreases 240 | 15 50 . 175 . Entered New Map 19 | . . . 19 . Time Decay 221 | 15 50 . 156 . Squads Dispatched . | . . . . . Investigation . | . . . . . Extermination . | . . . . . Reinforcement . | . . . . . Assault . | . . . . . Garrison . | . . . . . Intercept . | . . . . . Searches Triggered . | . . . . . Construction Impeded . | . . . . . Haulers Reinforced . | . . . . . Active Scanning Responses . | . . . . . Cargo Convoy Interrupts . | . . . . . Stealth | -11 -10 -10 -9 -9 --------- Run | Yrd Mat Sub Rec Scr Distress Signals . | . . . . . Communications Jammed . | . . . . . Distress Signals . | . . . . . Times Spotted 30 | . 5 24 1 . Peak Tracking Total 5 | . 1 5 1 . Tactical Retreats 6 | . . 6 . . Traps | -11 -10 -10 -9 -9 ------- Run | Yrd Mat Sub Rec Scr Traps Triggered 3 | . 3 . . . Indirectly . | . . . . . Trap Hack Attempts . | . . . . . Triggered . | . . . . . Disarmed . | . . . . . Reprogrammed . | . . . . . Reused . | . . . . . Traps Extracted . | . . . . . Installed . | . . . . . Triggered . | . . . . . Most Traps Carried 4 | . . 4 4 4 Machines | -11 -10 -10 -9 -9 ---------- Run | Yrd Mat Sub Rec Scr Machines Disabled 1 | . . 1 . . Max in Single Turn 1 | . . 1 . . Machines Repaired . | . . . . . Machines Dismantled . | . . . . . Machines Sabotaged . | . . . . . Overloaded Fab Kills . | . . . . . Hacking | -11 -10 -10 -9 -9 --------- Run | Yrd Mat Sub Rec Scr Machines Accessed 11 | . 2 3 6 . Terminals 4 | . 2 . 2 . Fabricators . | . . . . . Repair Stations . | . . . . . Recycling Units 4 | . . . 4 . Scanalyzers . | . . . . . Garrison Access . | . . . . . Total Hacks 26 | . 6 6 14 . Successful 16 | . 4 6 6 . Failed 10 | . 2 . 8 . Catastrophic 1 | . . . 1 . Database Lockouts . | . . . . . Manual 14 | . 1 . 13 . Terminals 12 | . 6 . 6 . Fabricators . | . . . . . Repair Stations . | . . . . . Recycling Units 8 | . . . 8 . Scanalyzers . | . . . . . Garrison Access . | . . . . . Terminal Hacks 9 | . 3 6 . . Record 4 | . . 4 . . Prototype ID Bank 2 | . 2 . . . Open Door 1 | . . 1 . . Registered Prototypes 1 | . 1 . . . Proto ID Catalog 1 | . . 1 . . Fabricator Hacks . | . . . . . Repair Station Hacks . | . . . . . Recycling Unit Hacks 1 | . . . 1 . Report Inventory 1 | . . . 1 . Scanalyzer . | . . . . . Garrison Access Hacks . | . . . . . Unauthorized Hacks 6 | . 1 . 5 . Terminals 2 | . 1 . 1 . Assimilate 1 | . 1 . . . Skim 1 | . . . 1 . Fabricators . | . . . . . Repair Stations . | . . . . . Recycling Units 4 | . . . 4 . Tunnel 4 | . . . 4 . Scanalyzers . | . . . . . Garrison Access . | . . . . . Data Cores Recovered . | . . . . . Used . | . . . . . Hacking Detections 3 | . 1 . 2 . Full Trace Events 1 | . . . 1 . Feedback Events 1 | . . . 1 . Corruption 1 | . . . 1 . Feedback Blocked . | . . . . . Robot Schematics Acquired . | . . . . . Robots Built . | . . . . . Authchips . | . . . . . Time . | . . . . . Total Robot Build Rating . | . . . . . Part Schematics Acquired . | . . . . . Parts Built . | . . . . . Authchips . | . . . . . Time . | . . . . . Total Part Build Rating . | . . . . . Part Studies Acquired . | . . . . . Parts Repaired . | . . . . . Time . | . . . . . Parts Recycled . | . . . . . Recycled Matter . | . . . . . Retrieved Matter . | . . . . . Retrieved Components . | . . . . . Parts Scanalyzed . | . . . . . Part Schematics Acquired . | . . . . . Parts Damaged . | . . . . . Bothacking | -11 -10 -10 -9 -9 ------------ Run | Yrd Mat Sub Rec Scr Used RIF Installer . | . . . . . Robots Hacked . | . . . . . Non-combat . | . . . . . Combat . | . . . . . Robot Hacks Applied . | . . . . . Relay Couplers Released . | . . . . . Fabnet Peak Effective % . | . . . . . Robots Rewired . | . . . . . Allies Hacked . | . . . . . Hacks Repelled . | . . . . . Allies | -11 -10 -10 -9 -9 -------- Run | Yrd Mat Sub Rec Scr Total Allies 1 | . 1 . . . Largest Group 1 | . 1 1 1 . Highest-Rated Group 10 | . 10 10 9 . Highest-Rated Ally 10 | . 10 10 9 . Total Orders 3 | . 2 . 1 . STAY 2 | . 1 . 1 . FOLLOW 1 | . 1 . . . Ally Attacks . | . . . . . Total Damage . | . . . . . Kills . | . . . . . Allies Corrupted . | . . . . . Allies Melted . | . . . . . Intel | -11 -10 -10 -9 -9 ------- Run | Yrd Mat Sub Rec Scr Active Infowar (turns) 2813 | 15 720 2078 . . Terrain 1864 | . . 1864 . . Seismic 949 | 15 720 214 . . Robot Analysis Total . | . . . . . Derelict Logs Recovered 5 | . . 1 . 4 Drone Launches . | . . . . . Drone Recoveries . | . . . . . Exploration | -11 -10 -10 -9 -9 ------------- Run | Yrd Mat Sub Rec Scr Turns Passed 9342 | 92 720 5678 643 2209 Spaces Moved 4933 | 57 588 2457 406 1425 Core 3 | 3 . . . . Treads 1208 | . . 1208 . . Legs . | . . . . . Wheels 3722 | 54 588 1249 406 1425 Hover . | . . . . . Flight . | . . . . . Fastest Speed 50 | 50 90 105 155 155 Average Speed 167 | 87 104 192 155 155 Slowest Speed 240 | 90 140 240 155 155 Overloaded Moves . | . . . . . Propulsion Burnouts . | . . . . . Robots Hopped . | . . . . . Potential Cave-ins 3 | . . 3 . . Cave-ins Triggered . | . . . . . Exploration Rate (%) 61 | 3 63 94 63 86 Regions Visited 4 Branch Regions 3 Pre-discovered Areas 5 | . . 1 4 . Known Exits Taken 1 | . . 1 . . Unknown Exits Taken 3 | 1 1 . 1 . Scrap Searched 13 | . . 8 . 5 Spaces Dug 13 | . . 13 . . Terrain Destroyed 41 | . . 41 . . Melee 11 | . . 11 . . Projectile 9 | . . 9 . . AOE 21 | . . 21 . . Terrain Rammed . | . . . . . Walls Destroyed . | . . . . . Machines Disabled . | . . . . . Actions | -11 -10 -10 -9 -9 --------- Run | Yrd Mat Sub Rec Scr Total 5826 | 77 646 3263 415 1425 Wait 666 | 1 24 635 6 . Move 4929 | 56 587 2456 405 1425 Hop . | . . . . . Pick Up 34 | 4 6 24 . . Fast Attach 13 | 7 6 . . . Attach 7 | . . 7 . . Detach . | . . . . . Swap 13 | . 1 10 2 . Drop 11 | . . 11 . . Fire 122 | 9 22 89 2 . Melee 31 | . . 31 . . Ram . | . . . . . Kick . | . . . . . Crush . | . . . . . Escape Stasis . | . . . . . Rewire . | . . . . . Trap . | . . . . . Miscellaneous . | . . . . . Route ------- -11/Scrapyard -10/Materials (discovered 4 exits: [*Mat x2] / [*Min] / *Sub) -10/Subcaves (discovered 3 exits: [*Mat x2] / *Rec) -9/Recycling -9/Scraptown (discovered 1 exit: [*Fac]) History --------- Turn | Location | Event 8 | -11/Scrapyard | Discovered new exit (range 15) 93 | -11/Scrapyard | Entered Materials 184 | -10/Materials | Discovered new exit (range 5) 312 | -10/Materials | Build established: Mutant 370 | -10/Materials | Discovered new exit (range 15) 478 | -10/Materials | Discovered new exit (range 16) 559 | -10/Materials | Discovered new exit (range 13) 813 | -10/Materials | Entered Subcaves 813 | -10/Subcaves | Accompanied by 1 ally 874 | -10/Subcaves | Discovered new exit (range 15) 1063 | -10/Subcaves | Lost 4 parts (1p1n1u1w) 1281 | -10/Subcaves | Shifting Twisted Machinery released Sub. Machine Gun 1405 | -10/Subcaves | Shifting Twisted Machinery released Sub. Power Source 2469 | -10/Subcaves | Shifting Twisted Machinery released Sub. Beam Cannon 2522 | -10/Subcaves | Core integrity fell below 50% 2649 | -10/Subcaves | Shifting Twisted Machinery released Piercing Trap 2699 | -10/Subcaves | Identified exit to Recycling 3053 | -10/Subcaves | A swath of the cavern ceiling suddenly collapsed 3405 | -10/Subcaves | A swath of the cavern ceiling suddenly collapsed 3851 | -10/Subcaves | Learned location of Zion (-7) 3851 | -10/Subcaves | Met a Zionite searching for "candidates" 4340 | -10/Subcaves | Shifting Twisted Machinery released Sub. Power Source 4367 | -10/Subcaves | Shifting Twisted Machinery released Sub. Beam Cannon 4675 | -10/Subcaves | Disturbed a concealed Subdweller 5954 | -10/Subcaves | Discovered new exit (range 6) 5964 | -10/Subcaves | Build established: Derelict-Mutant 5992 | -10/Subcaves | Visited 4L-MR0's lab 6013 | -10/Subcaves | Found Powered Cannon 6115 | -10/Subcaves | Visited Clippyterm 6119 | -10/Subcaves | Learned Research security intel 6119 | -10/Subcaves | Learned Factory emergency access door positions 6491 | -10/Subcaves | Entered Recycling 6491 | -9/Recycling | Accompanied by 1 ally 7094 | -9/Recycling | Scanned before Scraplab entrance 7117 | -9/Recycling | Entered Scraplab 7130 | -9/Recycling | Discovered new exit (range 3) 7134 | -9/Recycling | Entered Scraptown 7134 | -9/Scraptown | System corruption cleaned by C-Scrubber 7294 | -9/Scraptown | Visited UFD Registry 7294 | -9/Scraptown | Registered with UFD as "Arcslicer" 7317 | -9/Scraptown | Visited TADAMA 7345 | -9/Scraptown | Visited Spacefarers 7375 | -9/Scraptown | Visited Awakened 7477 | -9/Scraptown | Visited Cave Peace 7555 | -9/Scraptown | Scanned Subdweller tech in exchange for log data 7559 | -9/Scraptown | Learned Factory stockpile data 7562 | -9/Scraptown | Learned location of 1 exit from Factory 7564 | -9/Scraptown | Learned 8 Factory zone layouts 7596 | -9/Scraptown | Discovered new exit (range 5) 8012 | -9/Scraptown | Visited Comm Corps 8041 | -9/Scraptown | Visited Red Mages 8297 | -9/Scraptown | Visited Junk Repository 8351 | -9/Scraptown | Visited Junk Repository 8398 | -9/Scraptown | Visited Research Penetration Think Tank 8457 | -9/Scraptown | Visited DA-N13 Charitable Foundation 8471 | -9/Scraptown | Found DCF Scrap (29 items) 8495 | -9/Scraptown | Visited Chapter 10 8534 | -9/Scraptown | Visited Observation Area 8559 | -9/Scraptown | Visited Curators Association 8587 | -9/Scraptown | Visited Scrapoid Research Area 9343 | -9/Scraptown | Self-destructed Last Messages --------------- It's a devastating sight, having your friend violently impaled multiple times right in front of you. 1G-U1W(c): You're looking at the original prototype of the Rocket Booster, prized by Bolteaters for its ability to rapidly close on targets for optimal munching potential. 1G-U1W(c): The one and only legendary chainsaw used by DM-GVY himself. Rip and tear! 1G-U1W(c): M1-N7Y played a pivotal role in early UFD efforts to guide reforms to 0b10 Recycling, and this jammer was an important part of that success. Silently picking apart meddlesome patrols one by one was no easy task, but it gave the Gurus sufficient openings to make certain adjustments to 0b10 systems that have since kept Recycling activity lower than it otherwise might be. 08909_ LOCAL NARROWCAST: Closed for remodeling. 09115_ 1G-U1W(c): "Come one, come all! See for yourself a fine selection of the many wondrous pieces in our collection!" UK-OSE(j): Some say the "United" part of UFD is more of an aspiration than the reality, but I say look at all we've accomplished together! 09287_ Multiple signs read "I'm always busy, go away." Map ----- +----------------------------------------------------+ | ################"" "#?" """""???????????????? | | """"""""""""""""""" "##" " "" ???????????????? | | """"""""""""""""""" " " "" ???????????????? | | "##" "#?????????????? | | "#?" """"#?????????????? | | "#?? "??????????????? | | ##? " "" "#?????????????? | | #??" "" "#?????????????? | | """ """"""""""" """""" ##??""""""??????????????? | | ### ########### ###### #?????##????????????????? | | #??# ## #???????????????????????? | | #??# ## #???????????????????????? | | # # #??# # # !## #???????????????????????? | | #=! #!*#??#!]# ! #!]## #???????????????????????? | | #!!!# !#??#[?#[!!#?!## #???????????????????????? | | ########??#??#####??## ############????????????? | | ?????????????????????# #????????????? | | ?????????????????????# ##????????????? | | ?????????????????????# #????????????? | | ?????????????????????# #????????????? | | ?????????????????????# #????????????? | | ?????????????????????# ############????????????? | | ###################### #####???????????????????? | | "##"""##"""##"""##"|"# """"#???????????????????? | | "##" "##"""##"" ##" # "" "#???????????????????? | | @ c"#???????????????????? | | " "#???????????????????? | | """"#???????????????????? | | "##""|##"|"##!!$##"" ##E######???????????????????? | | "##"""##"""##"""##"""####????????????????????????? | | ???##############?####???????????????????????????? | | ?????????????????????????????????????????????????? | | ?????????????????????????????????????????????????? | | ?????????????????????????????????????????????????? | | ?????????????????????????????????????????????????? | | ?????????????????????????????????????????????????? | | ?????????????????????????????????????????????????? | | ?????????????????????????????????????????????????? | | ?????????????????????????????????????????????????? | | ?????????????????????????????????????????????????? | | ?????????????????????????????????????????????????? | | ?????????????????????????????????????????????????? | | ?????????????????????????????????????????????????? | | ?????????????????????????????????????????????????? | | ?????????????????????????????????????????????????? | | | | | | | | | | | +----------------------------------------------------+ Best States ------------- Heat Dissipation 25 Energy Generation 15 Energy Capacity 250 Matter Stores 450 Matter Capacity 450 Sight Range 16 Terrain Scan Range 16 Terrain Scan Density 10 Armor Coverage 100 Evasion (%) 42 Recoil Reduction 2 Item Schematics ----------------- None Robot Schematics ------------------ None Fabricated ------------ Nothing Repaired ---------- Nothing Studied --------- None Alien Tech Used ----------------- None Achievements -------------- None Challenges ------------ None Game ------ Seed FieldBorgMachine Manual? 0 Play Time 00:34:16 Cumulative 509.4 hours Start 2026.09.17 @ 21:06:36 End 2026.09.17 @ 21:39:14 Sessions 1 Manual Loads 0 Difficulty Rogue Special Mode None Game No. 376 Rogue 376 Adventurer 0 Explorer 0 Win Type - Total 11 Types 4/0/5/2/0/0/0/0/0/0 Lore% 66 Gallery% 74 Achievement% 62 Wizard Run 0 Options --------- Layout 2 ASCII 0 Keyboard 1 Movement Vi Keybinds 0 Fullscreen 2 Font 32/Smallcaps Map View 77x44 Zoom Use 0% Tactical HUD 1 Map Filters NONE Filters NONE Steam 1 RUN: 8c4ccaf6-deba-4b27-871f-b9fc4189f5c5